fUST/lending_fUST_20240501
["ID","MTS","AMOUNT","RATE_DAILY","PERIOD"]
[325153864,1714542641937,-500.44286462,0.00109589,120]
[325153866,1714542641946,-500.0,0.00109589,120]
[325153868,1714542641955,-500.0,0.00109589,120]
[325153870,1714542641964,-500.0,0.00109589,120]
[325153872,1714542641974,-500.0,0.00109589,120]
[325153874,1714542641983,-500.0,0.00109589,120]
[325153876,1714542641992,-500.0,0.00109589,120]
[325153878,1714542642001,-500.0,0.00109589,120]
[325153880,1714542642010,-500.0,0.00109589,120]
[325153882,1714542642019,-500.0,0.00109589,120]
[325153885,1714542642031,-500.0,0.00109589,120]
[325153886,1714542642042,-500.0,0.00109589,120]
[325153888,1714542642051,-500.6921081,0.00109589,120]
[325153890,1714542642061,-500.0,0.00109589,120]
[325153893,1714542642074,-500.0,0.00109589,120]
[325153895,1714542642083,-500.0,0.00109589,120]
[325153897,1714542642091,-500.0,0.00109589,120]
[325153899,1714542642101,-500.0,0.00109589,120]
[325153901,1714542642110,-500.0,0.00109589,120]
[325153903,1714542642119,-500.0,0.00109589,120]
[325153905,1714542642128,-500.0,0.00109589,120]
[325153907,1714542642137,-585.1803234,0.00109589,120]
[325153909,1714542642146,-500.0,0.00109589,120]
[325153911,1714542642155,-500.7833895,0.00109589,120]
[325153913,1714542642164,-500.0,0.00109589,120]
[325153915,1714542642176,-500.0,0.00109589,120]
[325153917,1714542642189,-500.0,0.00109589,120]
[325153919,1714542642198,-500.0,0.00109589,120]
[325153921,1714542642207,-500.0,0.00109589,120]
[325153923,1714542642220,-500.0,0.00109589,120]
[325153925,1714542642230,-500.0,0.00109589,120]
[325153927,1714542642239,-500.0,0.00109589,120]
[325153929,1714542642249,-500.0,0.00109589,120]
[325153931,1714542642258,-500.0,0.00109589,120]
[325153933,1714542642267,-500.60528522,0.00109589,120]
[325153935,1714542642276,-500.0,0.00109589,60]
[325153937,1714542642287,-500.0,0.00109589,120]
[325153939,1714542642296,-610.07403561,0.00109589,120]
[325153941,1714542642305,-500.0,0.00109589,120]
[325153943,1714542642314,-500.0,0.00109589,120]
[325153945,1714542642323,-500.7009833,0.00109589,120]
[325153947,1714542642332,-500.0,0.00109589,120]
[325153949,1714542642342,-500.0,0.00109589,120]
[325153951,1714542642351,-500.0,0.00109589,120]
[325153953,1714542642360,-500.0,0.00109589,120]
[325153955,1714542642369,-500.0,0.00109589,120]
[325153957,1714542642378,-500.0,0.00109589,120]
[325153959,1714542642387,-500.0,0.00109589,120]
[325153961,1714542642396,-500.0,0.00109589,120]
[325153963,1714542642405,-500.0,0.00109589,120]
[325153965,1714542642414,-256.04031963,0.00109589,120]
[325153967,1714542642424,-500.0,0.00109589,120]
[325153969,1714542642434,-500.0,0.00109589,120]
[325153971,1714542642443,-500.0,0.00109589,120]
[325153973,1714542642452,-500.0,0.00109589,120]
[325153975,1714542642460,-539.18071773,0.00109589,120]
[325153977,1714542642470,-500.0,0.00109589,120]
[325153979,1714542642479,-500.0,0.00109589,120]
[325153981,1714542642488,-500.0,0.00109589,120]
[325153983,1714542642497,-500.0,0.00109589,120]
[325153985,1714542642506,-559.78376401,0.00109589,120]
[325153987,1714542642515,-500.0,0.00109589,120]
[325153989,1714542642524,-500.80908163,0.00109589,2]
[325153991,1714542642533,-500.0,0.00109589,120]
[325153993,1714542642542,-505.85986609,0.00109589,120]
[325153995,1714542642551,-509.7198587,0.00109589,120]
[325153997,1714542642561,-500.0,0.00109589,30]
[325153999,1714542642570,-500.0,0.00109589,120]
[325154001,1714542642578,-333.99854397,0.00109589,120]
[325154003,1714542642587,-156.33964756,0.00109589,120]
[325154005,1714542642596,-500.0,0.00109589,120]
[325154007,1714542642605,-500.0,0.00109589,120]
[325154009,1714542642615,-500.0,0.00109589,120]
[325154011,1714542642623,-500.0,0.00109589,120]
[325154013,1714542642632,-500.0,0.00109589,120]
[325154015,1714542642641,-500.0,0.00109589,30]
[325154017,1714542642651,-500.0,0.00109589,7]
[325154019,1714542642660,-500.0,0.00109589,120]
[325154021,1714542642670,-500.0,0.00109589,120]
[325154023,1714542642679,-500.0,0.00109589,120]
[325154025,1714542642688,-500.0,0.00109589,120]
[325154027,1714542642697,-500.0,0.00109589,120]
[325154029,1714542642707,-500.0,0.00109589,120]
[325154031,1714542642716,-501.86647643,0.00109589,120]
[325154033,1714542642724,-500.0,0.00109589,120]
[325154035,1714542642734,-487.1362537,0.00109589,120]
[325154037,1714542642744,-503.93588927,0.00109589,120]
[325154039,1714542642754,-500.0,0.00109589,120]
[325154041,1714542642763,-500.0,0.00109589,120]
[325154043,1714542642774,-500.0,0.00109589,120]
[325154045,1714542642784,-500.0,0.00109589,120]
[325154047,1714542642794,-500.0,0.00109589,120]
[325154049,1714542642804,-500.0,0.00109589,120]
[325154051,1714542642813,-500.0,0.00109589,120]
[325154053,1714542642822,-500.0,0.00109589,120]
[325154055,1714542642831,-504.86096906,0.00109589,120]
[325154057,1714542642841,-160.06376333,0.00109589,2]
[325154058,1714542642850,-284.10178284,0.00109589,120]
[325154060,1714542642859,-516.72858567,0.00109589,120]
[325154061,1714542642868,-500.0,0.00109589,120]
[325154062,1714542642877,-500.0,0.00109589,120]
[325154063,1714542642888,-500.0,0.00109589,120]
[325154065,1714542642898,-257.30939426,0.00109589,2]
[325154066,1714542642908,-505.30029406,0.00109589,120]
[325154067,1714542642916,-500.0,0.00109589,2]
[325154068,1714542642928,-513.78525612,0.00109589,120]
[325154069,1714542642938,-500.0,0.00109589,120]
[325154070,1714542642948,-500.0,0.00109589,120]
[325154071,1714542642958,-412.81035146,0.00109589,120]
[325154072,1714542642967,-151.0,0.00109589,120]
[325154073,1714542642976,-500.98148124,0.00109589,120]
[325154074,1714542642985,-505.66976051,0.00109589,120]
[325154075,1714542642995,-500.0,0.00109589,120]
[325154076,1714542643004,-500.17561882,0.00109589,2]
[325154077,1714542643013,-237.09528617,0.00109589,120]
[325154078,1714542643023,-500.0,0.00109589,120]
[325154080,1714542643032,-500.0,0.00109589,120]
[325154081,1714542643041,-500.0,0.00109589,120]
[325154083,1714542643051,-523.91437792,0.00109589,120]
[325154085,1714542643060,-500.0,0.00109589,120]
[325154087,1714542643068,-500.0,0.00109589,120]
[325154089,1714542643078,-233.46401938,0.00109589,2]
[325154091,1714542643087,-500.0,0.00109589,120]
[325154093,1714542643096,-281.862295,0.00109589,120]
[325154095,1714542643105,-1060.703006,0.00109589,30]
[325154097,1714542643114,-505.05790839,0.00109589,120]
[325154099,1714542643123,-500.0,0.00109589,120]
[325154102,1714542643132,-500.0,0.00109589,120]
[325154105,1714542643141,-500.0,0.00109589,120]
[325154107,1714542643150,-1060.703006,0.00109589,30]
[325154109,1714542643159,-500.0,0.00109589,120]
[325154111,1714542643168,-500.0,0.00109589,120]
[325154113,1714542643178,-621.85189966,0.00109589,120]
[325154115,1714542643187,-500.0,0.00109589,120]
[325154117,1714542643196,-500.0,0.00109589,120]
[325154119,1714542643211,-500.0,0.00109589,120]
[325154121,1714542643220,-500.0,0.00109589,120]
[325154124,1714542643230,-500.0,0.00109589,120]
[325154126,1714542643239,-500.0,0.00109589,120]
[325154127,1714542643249,-500.0,0.00109589,120]
[325154129,1714542643258,-500.0,0.00109589,120]
[325154131,1714542643267,-500.0,0.00109589,120]
[325154133,1714542643276,-500.0,0.00109589,120]
[325154135,1714542643286,-500.0,0.00109589,120]
[325154137,1714542643295,-500.0,0.00109589,120]
[325154139,1714542643304,-500.0,0.00109589,120]
[325154141,1714542643313,-500.0,0.00109589,120]
[325154143,1714542643322,-500.0,0.00109589,120]
[325154145,1714542643331,-500.0,0.00109589,120]
[325154147,1714542643339,-500.0,0.00109589,120]
[325154149,1714542643349,-500.0,0.00109589,120]
[325154151,1714542643358,-500.0,0.00109589,120]
[325154153,1714542643367,-157.36028237,0.00109589,120]
[325154155,1714542643377,-5041.91465038,0.00109589,120]
[325154157,1714542643387,-612.01089784,0.00109589,120]
[325154159,1714542643396,-500.0,0.00109589,120]
[325154161,1714542643405,-500.0,0.00109589,120]
[325154163,1714542643414,-500.0,0.00109589,120]
[325154165,1714542643425,-500.0,0.00109589,120]
[325154167,1714542643434,-500.0,0.00109589,120]
[325154169,1714542643443,-566.07135066,0.00109589,120]
[325154171,1714542643452,-500.0,0.00109589,120]
[325154173,1714542643462,-500.0,0.00109589,120]
[325154175,1714542643471,-500.0,0.00109589,120]
[325154177,1714542643481,-500.0,0.00109589,120]
[325154179,1714542643490,-501.58400886,0.00109589,120]
[325154181,1714542643499,-500.0,0.00109589,120]
[325154183,1714542643508,-500.0,0.00109589,120]
[325154185,1714542643516,-500.0,0.00109589,120]
[325154187,1714542643525,-500.0,0.00109589,120]
[325154189,1714542643535,-151.669557,0.00109589,120]
[325154191,1714542643544,-500.0,0.00109589,120]
[325154193,1714542643552,-500.0,0.00109589,120]
[325154195,1714542643562,-500.0,0.00109589,120]
[325154197,1714542643571,-151.0,0.00109589,120]
[325154199,1714542643580,-500.0,0.00109589,120]
[325154201,1714542643589,-500.0,0.00109589,120]
[325154203,1714542643598,-500.0,0.00109589,120]
[325154205,1714542643607,-500.0,0.00109589,120]
[325154207,1714542643616,-500.0,0.00109589,120]
[325154209,1714542643625,-500.0,0.00109589,120]
[325154211,1714542643635,-500.0,0.00109589,120]
[325154213,1714542643644,-500.0,0.00109589,120]
[325154215,1714542643653,-500.0,0.00109589,120]
[325154217,1714542643662,-500.0,0.00109589,120]
[325154219,1714542643671,-500.0,0.00109589,120]
[325154221,1714542643680,-187.33565465,0.00109589,120]
[325154223,1714542643690,-3686.74,0.00109589,2]
[325154225,1714542643699,-500.0,0.00109589,120]
[325154227,1714542643708,-500.0,0.00109589,120]
[325154229,1714542643718,-270.53465341,0.00109589,120]
[325154231,1714542643727,-151.0,0.00109589,3]
[325154233,1714542643736,-500.0,0.00109589,120]
[325154235,1714542643745,-500.0,0.00109589,120]
[325154237,1714542643754,-500.0,0.00109589,120]
[325154239,1714542643763,-500.0,0.00109589,120]
[325154241,1714542643772,-3572.29,0.00109589,120]
[325154243,1714542643781,-500.0,0.00109589,120]
[325154245,1714542643790,-961.04,0.00109589,2]
[325154247,1714542643799,-500.0,0.00109589,120]
[325154249,1714542643809,-500.0,0.00109589,120]
[325154251,1714542643818,-500.0,0.00109589,120]
[325154253,1714542643827,-500.0,0.00109589,120]
[325154255,1714542643836,-500.0,0.00109589,120]
[325154257,1714542643845,-500.0,0.00109589,120]
[325154259,1714542643854,-500.0,0.00109589,120]
[325154261,1714542643863,-500.0,0.00109589,120]
[325154263,1714542643875,-500.0,0.00109589,120]
[325154265,1714542643892,-500.0,0.00109589,120]
[325154267,1714542643910,-500.0,0.00109589,120]
[325154269,1714542643919,-505.10575989,0.00109589,120]
[325154271,1714542643931,-563.88,0.00109589,120]
[325154272,1714542643939,-2130.64,0.00109589,120]
[325154274,1714542643948,-500.0,0.00109589,120]
[325154286,1714542644043,-500.0,0.00109589,120]
[325154288,1714542644053,-151.0,0.00109589,120]
[325154290,1714542644062,-228.9410275,0.00109589,120]
[325154292,1714542644071,-500.0,0.00109589,120]
[325154294,1714542644080,-500.0,0.00109589,120]
[325154296,1714542644090,-500.0,0.00109589,120]
[325154298,1714542644099,-151.0,0.00109589,120]
[325154300,1714542644108,-500.0,0.00109589,120]
[325154302,1714542644117,-500.0,0.00109589,120]
[325154304,1714542644126,-652.32,0.00109589,120]
[325154306,1714542644135,-2049.74,0.00109589,120]
[325154308,1714542644144,-500.0,0.00109589,120]
[325154310,1714542644153,-500.0,0.00109589,120]
[325154312,1714542644162,-500.0,0.00109589,120]
[325154314,1714542644173,-300.0,0.00109589,2]
[325154316,1714542644182,-500.0,0.00109589,120]
[325154318,1714542644192,-500.0,0.00109589,120]
[325154320,1714542644201,-500.0,0.00109589,120]
[325154322,1714542644210,-500.0,0.00109589,120]
[325154324,1714542644224,-500.0,0.00109589,120]
[325154326,1714542644233,-500.0,0.00109589,120]
[325154328,1714542644242,-1892.440964,0.00109589,120]
[325154330,1714542644251,-525.21635651,0.00109589,120]
[325154332,1714542644262,-500.0,0.00109589,120]
[325154334,1714542644271,-500.0,0.00109589,120]
[325154336,1714542644280,-500.0,0.00109589,120]
[325154338,1714542644292,-500.0,0.00109589,120]
[325154340,1714542644300,-1892.440964,0.00109589,120]
[325154342,1714542644310,-500.0,0.00109589,120]
[325154344,1714542644319,-500.0,0.00109589,120]
[325154346,1714542644328,-500.0,0.00109589,120]
[325154348,1714542644338,-500.0,0.00109589,120]
[325154350,1714542644347,-500.0,0.00109589,120]
[325154352,1714542644356,-500.0,0.00109589,120]
[325154354,1714542644366,-506.11602244,0.00109589,120]
[325154356,1714542644374,-500.0,0.00109589,120]
[325154358,1714542644383,-347.53608318,0.00109589,120]
[325154360,1714542644392,-500.0,0.00109589,120]
[325154362,1714542644402,-3714.02608,0.00109589,120]
[325154364,1714542644411,-500.0,0.00109589,120]
[325154366,1714542644420,-500.0,0.00109589,120]
[325154368,1714542644431,-500.0,0.00109589,120]
[325154370,1714542644441,-500.0,0.00109589,120]
[325154372,1714542644450,-3714.02608,0.00109589,120]
[325154374,1714542644460,-500.0,0.00109589,120]
[325154376,1714542644469,-531.76722986,0.00109589,120]
[325154378,1714542644478,-500.0,0.00109589,120]
[325154380,1714542644488,-500.0,0.00109589,120]
[325154382,1714542644498,-2182.01,0.00109589,120]
[325154384,1714542644507,-540.29187084,0.00109589,120]
[325154386,1714542644516,-500.0,0.00109589,120]
[325154388,1714542644526,-500.0,0.00109589,120]
[325154390,1714542644536,-500.0,0.00109589,120]
[325154392,1714542644545,-500.0,0.00109589,120]
[325154394,1714542644554,-500.0,0.00109589,120]
[325154396,1714542644564,-500.0,0.00109589,120]
[325154398,1714542644573,-500.0,0.00109589,120]
[325154400,1714542644582,-500.0,0.00109589,120]
[325154402,1714542644591,-500.0,0.00109589,120]
[325154404,1714542644601,-500.0,0.00109589,120]
[325154406,1714542644610,-500.0,0.00109589,120]
[325154408,1714542644620,-500.0,0.00109589,120]
[325154410,1714542644629,-500.0,0.00109589,120]
[325154412,1714542644639,-500.0,0.00109589,120]
[325154414,1714542644648,-500.0,0.00109589,120]
[325154416,1714542644658,-500.0,0.00109589,120]
[325154418,1714542644668,-500.0,0.00109589,120]
[325154420,1714542644679,-500.0,0.00109589,120]
[325154422,1714542644688,-500.0,0.00109589,120]
[325154424,1714542644697,-500.0,0.00109589,120]
[325154426,1714542644707,-500.0,0.00109589,120]
[325154428,1714542644715,-520.12060003,0.00109589,120]
[325154430,1714542644725,-151.0,0.00109589,120]
[325154432,1714542644735,-500.0,0.00109589,120]
[325154434,1714542644744,-500.0,0.00109589,120]
[325154436,1714542644753,-777.783313,0.00109589,120]
[325154438,1714542644762,-503.96709875,0.00109589,120]
[325154440,1714542644771,-1691.22,0.00109589,120]
[325154442,1714542644781,-500.0,0.00109589,3]
[325154444,1714542644791,-500.0,0.00109589,120]
[325154446,1714542644800,-500.0,0.00109589,120]
[325154448,1714542644810,-795.370287,0.00109589,120]
[325154450,1714542644819,-777.783313,0.00109589,120]
[325154452,1714542644828,-503.42686278,0.00109589,30]
[325154455,1714542644838,-151.0,0.00109589,120]
[325154456,1714542644847,-500.0,0.00109589,120]
[325154459,1714542644857,-500.0,0.00109589,120]
[325154461,1714542644866,-500.0,0.00109589,120]
[325154463,1714542644876,-500.0,0.00109589,120]
[325154464,1714542644885,-500.0,0.00109589,120]
[325154466,1714542644895,-500.0,0.00109589,120]
[325154469,1714542644904,-795.370287,0.00109589,120]
[325154471,1714542644914,-500.0,0.00109589,120]
[325154473,1714542644924,-151.0,0.00109589,120]
[325154475,1714542644934,-500.68146842,0.00109589,120]
[325154477,1714542644943,-500.0,0.00109589,120]
[325154479,1714542644952,-500.0,0.00109589,120]
[325154481,1714542644962,-500.0,0.00109589,120]
[325154483,1714542644971,-151.0,0.00109589,120]
[325154485,1714542644980,-500.0,0.00109589,20]
[325154487,1714542644989,-1337.34,0.00109589,120]
[325154489,1714542644998,-500.0,0.00109589,120]
[325154491,1714542645007,-2284.63,0.00109589,120]
[325154493,1714542645016,-504.77645063,0.00109589,120]
[325154495,1714542645026,-1084.01,0.00109589,120]
[325154497,1714542645036,-500.0,0.00109589,120]
[325154498,1714542645047,-500.0,0.00109589,120]
[325154500,1714542645056,-500.0,0.00109589,120]
[325154503,1714542645067,-500.0,0.00109589,120]
[325154504,1714542645077,-501.14754369,0.00109589,120]
[325154506,1714542645088,-2032.68,0.00109589,120]
[325154509,1714542645098,-500.0,0.00109589,120]
[325154510,1714542645108,-151.0,0.00109589,120]
[325154513,1714542645118,-528.22,0.00109589,120]
[325154515,1714542645127,-500.0,0.00109589,120]
[325154517,1714542645136,-500.0,0.00109589,120]
[325154519,1714542645145,-500.0,0.00109589,120]
[325154520,1714542645155,-500.0,0.00109589,120]
[325154523,1714542645164,-500.0,0.00109589,120]
[325154524,1714542645176,-500.0,0.00109589,120]
[325154527,1714542645185,-500.0,0.00109589,120]
[325154529,1714542645195,-500.0,0.00109589,120]
[325154530,1714542645206,-500.0,0.00109589,120]
[325154533,1714542645215,-502.92570621,0.00109589,120]
[325154534,1714542645227,-500.0,0.00109589,120]
[325154536,1714542645236,-500.0,0.00109589,120]
[325154538,1714542645247,-500.0,0.00109589,120]
[325154540,1714542645256,-565.83795188,0.00109589,120]
[325154542,1714542645265,-500.0,0.00109589,120]
[325154544,1714542645274,-500.0,0.00109589,120]
[325154546,1714542645283,-500.0,0.00109589,120]
[325154548,1714542645293,-500.0,0.00109589,120]
[325154550,1714542645303,-500.0,0.00109589,120]
[325154553,1714542645315,-500.0,0.00109589,120]
[325154555,1714542645324,-500.0,0.00109589,120]
[325154557,1714542645333,-500.0,0.00109589,120]
[325154559,1714542645343,-500.0,0.00109589,120]
[325154561,1714542645353,-500.0,0.00109589,120]
[325154563,1714542645362,-541.41588124,0.00109589,120]
[325154565,1714542645371,-500.0,0.00109589,120]
[325154567,1714542645381,-500.0,0.00109589,120]
[325154569,1714542645391,-505.32168027,0.00109589,120]
[325154571,1714542645400,-562.67,0.00109589,120]
[325154573,1714542645409,-500.0,0.00109589,120]
[325154575,1714542645419,-500.0,0.00109589,120]
[325154577,1714542645433,-500.0,0.00109589,120]
[325154579,1714542645442,-500.0,0.00109589,120]
[325154581,1714542645452,-500.0,0.00109589,120]
[325154583,1714542645461,-501.23120924,0.00109589,120]
[325154585,1714542645471,-1347.953495,0.00109589,120]
[325154587,1714542645480,-494.24977109,0.00109589,120]
[325154589,1714542645490,-1480.7,0.00109589,120]
[325154591,1714542645499,-1347.953495,0.00109589,120]
[325154593,1714542645509,-500.0,0.00109589,120]
[325154595,1714542645519,-500.0,0.00109589,120]
[325154597,1714542645528,-500.0,0.00109589,120]
[325154599,1714542645537,-500.0,0.00109589,120]
[325154601,1714542645546,-500.30062697,0.00109589,120]
[325154603,1714542645555,-500.0,0.00109589,120]
[325154605,1714542645564,-500.0,0.00109589,120]
[325154607,1714542645575,-151.0,0.00109589,120]
[325154609,1714542645595,-500.0,0.00109589,120]
[325154611,1714542645615,-500.0,0.00109589,120]
[325154613,1714542645634,-500.0,0.00109589,120]
[325154615,1714542645653,-500.0,0.00109589,120]
[325154617,1714542645677,-500.0,0.00109589,120]
[325154619,1714542645695,-513.14109795,0.00109589,120]
[325154622,1714542645717,-505.94488032,0.00109589,120]
[325154624,1714542645738,-527.43275641,0.00109589,120]
[325154626,1714542645756,-500.0,0.00109589,120]
[325154628,1714542645765,-4187.58,0.00109589,120]
[325154630,1714542645774,-529.41612635,0.00109589,120]
[325154632,1714542645783,-500.0,0.00109589,120]
[325154634,1714542645792,-500.0,0.00109589,120]
[325154637,1714542645801,-498.36308607,0.00109589,120]
[325154640,1714542645810,-2156.04,0.00109589,120]
[325154643,1714542645819,-500.0,0.00109589,120]
[325154646,1714542645828,-500.0,0.00109589,120]
[325154649,1714542645838,-297.753316,0.00109589,120]
[325154652,1714542645847,-312.192218,0.00109589,120]
[325154655,1714542645855,-500.0,0.00109589,120]
[325154658,1714542645865,-500.0,0.00109589,120]
[325154661,1714542645874,-297.753316,0.00109589,120]
[325154662,1714542645883,-312.192218,0.00109589,120]
[325154664,1714542645893,-500.0,0.00109589,120]
[325154666,1714542645902,-500.0,0.00109589,120]
[325154669,1714542645913,-595.93407744,0.00109589,120]
[325154671,1714542645923,-500.0,0.00109589,120]
[325154673,1714542645936,-500.0,0.00109589,120]
[325154675,1714542645945,-486.96603842,0.00109589,120]
[325154677,1714542645954,-500.0,0.00109589,120]
[325154679,1714542645964,-500.0,0.00109589,120]
[325154681,1714542645973,-411.54856075,0.00109589,120]
[325154683,1714542645982,-500.0,0.00109589,120]
[325154685,1714542645991,-500.0,0.00109589,120]
[325154687,1714542646001,-201.308944,0.00109589,120]
[325154689,1714542646010,-500.0,0.00109589,120]
[325154691,1714542646020,-500.0,0.00109589,120]
[325154693,1714542646029,-510.57560855,0.00109589,120]
[325154695,1714542646038,-500.0,0.00109589,120]
[325154697,1714542646047,-947.13,0.00109589,120]
[325154699,1714542646056,-1677.93,0.00109589,120]
[325154701,1714542646065,-201.308944,0.00109589,120]
[325154703,1714542646074,-500.0,0.00109589,120]
[325154705,1714542646084,-500.0,0.00109589,120]
[325154707,1714542646093,-500.0,0.00109589,120]
[325154709,1714542646102,-500.0,0.00109589,120]
[325154711,1714542646112,-500.0,0.00109589,120]
[325154713,1714542646122,-500.0,0.00109589,120]
[325154715,1714542646131,-2321.1,0.00109589,120]
[325154724,1714542646140,-500.0,0.00109589,120]
[325154727,1714542646237,-500.0,0.00109589,120]
[325154729,1714542646248,-500.0,0.00109589,120]
[325154731,1714542646257,-914.493229,0.00109589,120]
[325154733,1714542646267,-500.0,0.00109589,120]
[325154735,1714542646277,-371.26049156,0.00109589,120]
[325154737,1714542646287,-500.0,0.00109589,120]
[325154740,1714542646297,-914.493229,0.00109589,120]
[325154741,1714542646307,-500.0,0.00109589,120]
[325154744,1714542646316,-151.0,0.00109589,120]
[325154746,1714542646325,-227.07133085,0.00109589,120]
[325154748,1714542646334,-500.0,0.00109589,120]
[325154750,1714542646345,-500.0,0.00109589,120]
[325154752,1714542646354,-509.55728924,0.00109589,120]
[325154754,1714542646363,-500.0,0.00109589,120]
[325154756,1714542646372,-500.0,0.00109589,120]
[325154758,1714542646381,-500.0,0.00109589,120]
[325154760,1714542646392,-500.0,0.00109589,120]
[325154762,1714542646401,-500.0,0.00109589,120]
[325154764,1714542646409,-500.0,0.00109589,120]
[325154765,1714542646419,-500.0,0.00109589,120]
[325154768,1714542646431,-500.0,0.00109589,120]
[325154770,1714542646440,-500.0,0.00109589,120]
[325154772,1714542646448,-500.0,0.00109589,120]
[325154774,1714542646458,-500.0,0.00109589,120]
[325154776,1714542646467,-500.0,0.00109589,120]
[325154778,1714542646476,-500.0,0.00109589,120]
[325154780,1714542646485,-500.0,0.00109589,120]
[325154781,1714542646494,-500.0,0.00109589,120]
[325154784,1714542646503,-500.0,0.00109589,120]
[325154786,1714542646512,-506.23410785,0.00109589,120]
[325154787,1714542646521,-500.0,0.00109589,120]
[325154790,1714542646531,-449.72696002,0.00109589,120]
[325154791,1714542646540,-1250.0,0.00109589,120]
[325154794,1714542646548,-500.0,0.00109589,120]
[325154796,1714542646558,-361.35558718,0.00109589,120]
[325154798,1714542646568,-500.0,0.00109589,120]
[325154800,1714542646577,-151.0,0.00109589,120]
[325154801,1714542646585,-3081.79,0.00109589,120]
[325154803,1714542646594,-500.0,0.00109589,120]
[325154805,1714542646603,-15.97164496,0.00109589,120]
[325154816,1714542646696,-484.02835504,0.00109589,120]
[325154818,1714542646706,-500.0,0.00109589,120]
[325154820,1714542646715,-646.96111873,0.00109589,120]
[325154822,1714542646725,-500.0,0.00109589,120]
[325154824,1714542646734,-151.0,0.00109589,120]
[325154826,1714542646743,-500.0,0.00109589,120]
[325154828,1714542646752,-2359.27858934,0.00109589,120]
[325154851,1714542646951,-0.0061909,0.00109589,120]
[325154895,1714542647530,-1.37965244,0.00109589,120]
[325154933,1714542647883,-158.18556732,0.00109589,120]
[325154935,1714542647892,-518.97989705,0.00109589,120]
[325154937,1714542647901,-500.0,0.00109589,120]
[325154939,1714542647910,-610.94495,0.00109589,120]
[325154941,1714542647918,-1137.82887939,0.00109589,120]
[325155032,1714542648793,-112.17112061,0.00109589,120]
[325155034,1714542648802,-418.13809679,0.00109589,120]
[325157289,1714543554175,-150.0,0.00035644,3]
[325157290,1714543554196,-151.0,0.00045,120]
[325157291,1714543554220,-178.06762619,0.00045488,2]
[325157292,1714543554239,-438.30129,0.0004649,2]
[325157293,1714543554258,-99.92097763,0.00049863,2]
[325157319,1714543632134,-438.30129,0.0004649,2]
[325157320,1714543632154,-73.96517137,0.00049863,2]
[325157321,1714543632175,-184.416091,0.00049863,2]
[325157322,1714543632195,-385.48143196,0.00050949,2]
[325157323,1714543650118,-438.30129,0.00046489,2]
[325157324,1714543650139,-164.51687018,0.00050948,2]
[325157326,1714543662790,157.45695583,0.00020913,2]
[325157327,1714543663526,1576.98678225,0.00020913,2]
[325157341,1714543751103,-427.13159,0.00046489,2]
[325157342,1714543751124,-427.1316,0.00052434,2]
[325157343,1714543751144,-151.0,0.00056274,120]
[325157344,1714543751164,-427.1316,0.0005838,2]
[325157345,1714543751184,-173.886149,0.00060753,2]
[325157346,1714543751205,-153.35599852,0.00061742,120]